[Event "NJSK 2024 AmBm"]
[Site "Groningen, Netherlands"]
[Date "2024.06.02"]
[Round "6.1"]
[White "Gergin, Isafara"]
[Black "Westerhof, Fleur"]
[Result "0-1"]
[TimeControl "90min/40moves + 30min + 30sec/move"]
[WhiteElo "1888"]
[BlackElo "1916"]

1. e4 {[%clk 01:30:59]} e5 {[%clk 01:30:55]} {[%emt 00:00:05]} 2. Nf3 {[%clk
01:31:25]} {[%emt 00:00:04]} Nc6 {[%clk 01:31:14]} {[%emt 00:00:10]} 3. d4
{[%clk 01:31:51]} {[%emt 00:00:04]} exd4 {[%clk 01:31:33]} {[%emt 00:00:11]} 4.
Nxd4 {[%clk 01:32:17]} {[%emt 00:00:05]} Qf6 {[%clk 01:31:42]} {[%emt
00:00:21]} 5. Be3 {[%clk 01:32:40]} {[%emt 00:00:07]} Bc5 {[%clk 01:32:03]}
{[%emt 00:00:09]} 6. c3 {[%clk 01:33:03]} {[%emt 00:00:08]} Nge7 {[%clk
01:31:50]} {[%emt 00:00:42]} 7. Bc4 {[%clk 01:33:24]} {[%emt 00:00:09]} O-O
{[%clk 01:31:04]} {[%emt 00:01:17]} 8. O-O {[%clk 01:33:37]} {[%emt 00:00:16]}
Bb6 {[%clk 01:30:54]} {[%emt 00:00:40]} 9. Qd2 {[%clk 01:27:46]} {[%emt
00:06:21]} d6 {[%clk 01:24:03]} {[%emt 00:07:22]} 10. f3 {[%clk 01:19:17]}
{[%emt 00:08:58]} Rd8 {[%clk 01:16:04]} {[%emt 00:08:29]} 11. Kh1 {[%clk
01:09:47]} {[%emt 00:10:01]} h6 {[%clk 01:13:32]} {[%emt 00:03:01]} 12. Na3
{[%clk 01:02:12]} {[%emt 00:08:05]} Nxd4 {[%clk 01:05:11]} {[%emt 00:08:51]} 13.
cxd4 {[%clk 00:57:22]} {[%emt 00:05:20]} Be6 {[%clk 01:02:16]} {[%emt
00:03:25]} 14. Rad1 {[%clk 00:55:17]} {[%emt 00:02:36]} Bxc4 {[%clk 01:00:09]}
{[%emt 00:02:37]} 15. Nxc4 {[%clk 00:54:51]} {[%emt 00:00:56]} d5 {[%clk
00:59:12]} {[%emt 00:01:26]} 16. e5 {[%clk 00:51:58]} {[%emt 00:03:23]} Qg6
{[%clk 00:55:51]} {[%emt 00:03:51]} 17. Nxb6 {[%clk 00:48:11]} {[%emt
00:04:18]} axb6 {[%clk 00:51:54]} {[%emt 00:04:26]} 18. Qc3 {[%clk 00:32:04]}
{[%emt 00:16:38]} c6 {[%clk 00:47:31]} {[%emt 00:04:52]} 19. Qb3 {[%clk
00:28:30]} {[%emt 00:04:05]} b5 {[%clk 00:42:36]} {[%emt 00:05:25]} 20. a3
{[%clk 00:23:41]} {[%emt 00:05:19]} Nf5 {[%clk 00:39:14]} {[%emt 00:03:51]} 21.
Qd3 {[%clk 00:22:14]} {[%emt 00:01:57]} Ra4 {[%clk 00:35:02]} {[%emt 00:04:43]}
22. g4 {[%clk 00:16:07]} {[%emt 00:06:37]} Nxe3 {[%clk 00:32:13]} {[%emt
00:03:18]} 23. Qxe3 {[%clk 00:16:32]} {[%emt 00:00:06]} Rda8 {[%clk 00:31:24]}
{[%emt 00:01:17]} 24. Qd2 {[%clk 00:13:40]} {[%emt 00:03:22]} Rc4 {[%clk
00:29:12]} {[%emt 00:02:43]} 25. Rf2 {[%clk 00:12:08]} {[%emt 00:02:03]} Raa4
{[%clk 00:21:38]} {[%emt 00:08:04]} 26. Qe3 {[%clk 00:08:41]} {[%emt 00:03:55]}
Rc2 {[%clk 00:16:11]} {[%emt 00:05:58]} 27. Rfd2 {[%clk 00:05:29]} {[%emt
00:03:41]} Rac4 {[%clk 00:14:42]} {[%emt 00:02:00]} 28. h3 {[%clk 00:03:14]}
{[%emt 00:02:45]} Rxd2 {[%clk 00:09:36]} {[%emt 00:05:37]} 29. Rxd2 {[%clk
00:02:49]} {[%emt 00:00:55]} Rc1+ {[%clk 00:09:22]} {[%emt 00:00:44]} 30. Kg2
{[%clk 00:03:06]} {[%emt 00:00:12]} Qb1 {[%clk 00:09:22]} {[%emt 00:00:29]} 31.
Qf2 {[%clk 00:02:42]} {[%emt 00:00:55]} Qa2 {[%clk 00:05:26]} {[%emt 00:04:26]}
32. Rc2 {[%emt 00:01:44]} Ra1 {[%clk 00:05:25]} 33. Kg3 {[%clk 00:01:16]}
{[%emt 00:01:13]} Qb1 {[%clk 00:05:25]} {[%emt 00:00:30]} 34. Qg2 {[%clk
00:01:00]} {[%emt 00:00:46]} Qe1+ {[%clk 00:05:11]} {[%emt 00:00:44]} 35. Kh2
{[%clk 00:01:03]} {[%emt 00:00:27]} Qe3 {[%clk 00:05:05]} {[%emt 00:00:37]} 36.
Qf2 {[%clk 00:00:48]} {[%emt 00:00:44]} Qxf2+ {[%clk 00:04:52]} {[%emt
00:00:43]} 37. Rxf2 {[%clk 00:01:14]} {[%emt 00:00:05]} Rd1 {[%clk 00:05:13]}
{[%emt 00:00:08]} 38. Re2 {[%clk 00:00:41]} {[%emt 00:01:03]} Rxd4 {[%clk
00:05:34]} {[%emt 00:00:09]} 39. Kg3 {[%clk 00:01:06]} {[%emt 00:00:05]} Kf8
{[%clk 00:04:51]} {[%emt 00:01:13]} 40. f4 {[%clk 00:01:01]} {[%emt 00:00:35]}
Ke7 {[%clk 00:04:01]} {[%emt 00:01:20]} 41. f5 {[%clk 00:00:54]} {[%emt
00:00:37]} b4 {[%clk 00:03:20]} {[%emt 00:01:11]} 42. axb4 {[%clk 00:29:11]}
{[%emt 00:02:14]} Rxb4 {[%clk 00:33:42]} {[%emt 00:00:08]} 43. h4 {[%clk
00:29:02]} {[%emt 00:00:38]} b6 {[%clk 00:28:51]} {[%emt 00:05:21]} 44. g5
{[%clk 00:26:04]} {[%emt 00:03:29]} hxg5 {[%clk 00:23:21]} {[%emt 00:05:59]} 45.
hxg5 {[%clk 00:26:28]} {[%emt 00:00:06]} c5 {[%clk 00:22:40]} {[%emt 00:01:12]}
46. f6+ {[%clk 00:24:10]} {[%emt 00:02:48]} gxf6 {[%clk 00:19:43]} {[%emt
00:03:26]} 47. exf6+ {[%clk 00:24:25]} {[%emt 00:00:14]} Kf8 {[%clk 00:19:58]}
{[%emt 00:00:15]} 48. Rd2 {[%clk 00:23:24]} {[%emt 00:01:32]} Rd4 {[%clk
00:16:36]} {[%emt 00:03:52]} 49. Rh2 {[%clk 00:19:06]} {[%emt 00:04:47]} Kg8
{[%clk 00:15:11]} {[%emt 00:01:56]} 50. Kf3 {[%clk 00:18:48]} {[%emt 00:00:48]}
b5 {[%clk 00:14:25]} {[%emt 00:01:16]} 51. Rc2 {[%clk 00:15:17]} {[%emt
00:04:00]} c4 {[%clk 00:12:41]} {[%emt 00:02:15]} 52. Re2 {[%clk 00:14:48]}
{[%emt 00:00:59]} Kh7 {[%clk 00:10:33]} {[%emt 00:02:38]} 53. Re7 {[%clk
00:12:43]} {[%emt 00:02:35]} Kg6 {[%clk 00:10:56]} {[%emt 00:00:06]} 54. Rb7
{[%clk 00:12:10]} {[%emt 00:01:04]} b4 {[%clk 00:10:10]} {[%emt 00:01:16]} 55.
Rxb4 {[%clk 00:07:56]} {[%emt 00:04:45]} Kxg5 {[%clk 00:09:28]} {[%emt
00:01:12]} 56. Ke2 {[%clk 00:06:59]} {[%emt 00:01:27]} Kxf6 {[%clk 00:08:37]}
{[%emt 00:01:21]} 57. b3 {[%clk 00:06:32]} {[%emt 00:00:57]} Re4+ {[%clk
00:08:36]} {[%emt 00:00:31]} 58. Kd2 {[%clk 00:06:09]} {[%emt 00:00:54]} cxb3
{[%clk 00:06:48]} {[%emt 00:02:18]} 59. Rxb3 {[%clk 00:06:34]} {[%emt
00:00:05]} Ke5 {[%clk 00:06:49]} {[%emt 00:00:28]} 60. Rb7 {[%emt 00:00:41]} f5
{[%clk 00:06:52]} 61. Rf7 {[%clk 00:07:06]} {[%emt 00:00:14]} Rg4 {[%clk
00:05:41]} {[%emt 00:01:41]} 62. Ke3 {[%clk 00:06:58]} {[%emt 00:00:39]} d4+
{[%clk 00:05:13]} {[%emt 00:00:57]} 63. Ke2 {[%clk 00:06:53]} {[%emt 00:00:35]}
Rg3 {[%clk 00:04:43]} {[%emt 00:01:00]} 64. Re7+ {[%clk 00:06:59]} {[%emt
00:00:24]} Kf4 {[%clk 00:04:22]} {[%emt 00:00:50]} 65. Rd7 {[%clk 00:07:03]}
{[%emt 00:00:26]} Re3+ {[%clk 00:03:52]} {[%emt 00:01:00]} 66. Kf2 {[%clk
00:06:27]} {[%emt 00:01:07]} Ke4 {[%clk 00:03:46]} {[%emt 00:00:37]} 67. Rf7
{[%clk 00:05:33]} {[%emt 00:01:24]} f4 {[%clk 00:03:14]} {[%emt 00:01:02]} 68.
Rf8 {[%clk 00:05:20]} {[%emt 00:00:42]} d3 {[%clk 00:02:32]} {[%emt 00:01:12]}
69. Re8+ {[%clk 00:05:04]} {[%emt 00:00:47]} Kd4 {[%clk 00:02:55]} {[%emt
00:00:07]} 70. Rd8+ {[%clk 00:04:27]} {[%emt 00:01:06]} Kc3 {[%clk 00:03:15]}
{[%emt 00:00:10]} 71. Rc8+ {[%clk 00:04:35]} {[%emt 00:00:23]} Kd2 {[%clk
00:03:09]} {[%emt 00:00:36]} 72. Rf8 {[%clk 00:04:28]} {[%emt 00:00:36]} Re4
{[%clk 00:02:29]} {[%emt 00:01:10]} 73. Rd8 {[%clk 00:04:39]} {[%emt 00:00:19]}
Rc4 {[%clk 00:01:58]} {[%emt 00:01:01]} 74. Rd7 {[%clk 00:03:13]} {[%emt
00:01:56]} Kc2 {[%clk 00:02:01]} {[%emt 00:00:27]} 75. Ke1 {[%clk 00:03:07]}
{[%emt 00:00:36]} f3 {[%clk 00:02:00]} {[%emt 00:00:31]} 76. Rd6 {[%clk
00:03:24]} {[%emt 00:00:13]} Rc3 {[%clk 00:01:27]} {[%emt 00:01:04]} 77. Rd5
{[%clk 00:03:38]} {[%emt 00:00:15]} Kc1 {[%clk 00:01:38]} {[%emt 00:00:19]} 78.
Rd7 {[%clk 00:04:00]} {[%emt 00:00:09]} d2 {[%clk 00:01:50]} {[%emt 00:00:18]}
79. Rxd2 {[%clk 00:04:20]} {[%emt 00:00:11]} Re3 {[%clk 00:02:15]} {[%emt
00:00:04]} 0-1

[Event "NJSK 2024 AmBm"]
[Site "Groningen, Netherlands"]
[Date "2024.06.02"]
[Round "6.2"]
[White "Verheij, Dana"]
[Black "Kulikova, Polina"]
[Result "1/2-1/2"]
[TimeControl "90min/40moves + 30min + 30sec/move"]
[WhiteElo "1923"]
[BlackElo "1690"]

1. e4 {[%clk 01:30:58]} {[%emt 00:00:02]} c6 {[%clk 01:30:59]} {[%emt
00:00:02]} 2. d4 {[%clk 01:31:23]} {[%emt 00:00:05]} d5 {[%clk 01:31:25]}
{[%emt 00:00:04]} 3. exd5 {[%clk 01:31:50]} {[%emt 00:00:02]} cxd5 {[%clk
01:31:52]} {[%emt 00:00:03]} 4. Nf3 {[%clk 01:32:04]} {[%emt 00:00:17]} Nc6
{[%clk 01:32:21]} 5. Ne5 {[%clk 01:32:24]} {[%emt 00:00:10]} a6 {[%clk
01:32:45]} {[%emt 00:00:07]} 6. c3 {[%clk 01:32:45]} {[%emt 00:00:08]} Nxe5
{[%clk 01:33:09]} {[%emt 00:00:05]} 7. dxe5 {[%clk 01:33:12]} {[%emt 00:00:03]}
Bf5 {[%clk 01:33:35]} {[%emt 00:00:05]} 8. Be3 {[%clk 01:33:31]} {[%emt
00:00:11]} e6 {[%clk 01:33:59]} {[%emt 00:00:06]} 9. Nd2 {[%clk 01:33:50]}
{[%emt 00:00:11]} Ne7 {[%clk 01:34:25]} {[%emt 00:00:03]} 10. f4 {[%clk
01:34:05]} {[%emt 00:00:15]} Nc6 {[%clk 01:34:48]} {[%emt 00:00:07]} 11. Nf3
{[%clk 01:34:32]} {[%emt 00:00:03]} Be7 {[%clk 01:35:06]} {[%emt 00:00:12]} 12.
Bd3 {[%clk 01:34:53]} {[%emt 00:00:09]} Bxd3 {[%clk 01:35:30]} {[%emt
00:00:07]} 13. Qxd3 {[%clk 01:35:21]} {[%emt 00:00:02]} Rc8 {[%emt 00:00:57]}
14. O-O {[%clk 01:35:19]} g6 {[%clk 01:35:17]} {[%emt 00:00:47]} 15. Kh1 {[%clk
01:33:33]} {[%emt 00:02:15]} O-O {[%clk 01:33:16]} {[%emt 00:02:32]} 16. Rae1
{[%clk 01:28:17]} {[%emt 00:05:45]} Qc7 {[%clk 01:27:51]} {[%emt 00:05:55]} 17.
g4 {[%clk 01:21:27]} {[%emt 00:07:19]} f5 {[%clk 00:40:33]} {[%emt 00:47:48]}
18. exf6 {[%clk 01:19:42]} {[%emt 00:02:16]} Rxf6 {[%clk 00:34:58]} {[%emt
00:06:05]} 19. f5 {[%clk 01:14:52]} {[%emt 00:05:20]} gxf5 {[%clk 00:16:33]}
{[%emt 00:18:55]} 20. gxf5 {[%clk 01:12:32]} {[%emt 00:02:50]} Rxf5 {[%clk
00:13:35]} {[%emt 00:03:28]} 21. Rg1+ {[%clk 01:08:56]} {[%emt 00:04:05]} Kf7
{[%clk 00:08:01]} {[%emt 00:06:05]} 22. Ng5+ {[%clk 01:07:44]} {[%emt
00:01:42]} Bxg5 {[%clk 00:07:58]} {[%emt 00:00:33]} 23. Rxg5 {[%clk 01:07:07]}
{[%emt 00:01:08]} Ne7 {[%clk 00:07:35]} {[%emt 00:00:53]} 24. Reg1 {[%clk
00:56:11]} {[%emt 00:11:25]} Qc4 {[%clk 00:03:56]} {[%emt 00:04:09]} 25. Rg7+
{[%clk 00:49:14]} {[%emt 00:07:27]} Ke8 {[%clk 00:04:18]} {[%emt 00:00:08]} 26.
Qxc4 {[%clk 00:48:25]} {[%emt 00:01:18]} Rxc4 {[%clk 00:04:21]} {[%emt
00:00:28]} 27. Rxh7 {[%clk 00:45:55]} {[%emt 00:02:59]} Rf7 {[%clk 00:04:18]}
{[%emt 00:00:34]} 28. Rxf7 {[%clk 00:41:32]} {[%emt 00:04:53]} Kxf7 {[%clk
00:04:45]} {[%emt 00:00:02]} 29. Kg2 {[%clk 00:34:54]} {[%emt 00:07:07]} Rg4+
{[%clk 00:01:36]} {[%emt 00:03:41]} 30. Kf3 {[%clk 00:35:17]} {[%emt 00:00:06]}
Rxg1 {[%clk 00:01:22]} {[%emt 00:00:44]} 31. Bxg1 {[%clk 00:35:45]} {[%emt
00:00:02]} Kf6 {[%clk 00:00:35]} {[%emt 00:01:18]} 32. Bf2 {[%clk 00:24:24]}
{[%emt 00:11:50]} Kf5 {[%clk 00:00:43]} {[%emt 00:00:22]} 33. Be3 {[%clk
00:23:12]} {[%emt 00:01:42]} e5 {[%clk 00:00:43]} {[%emt 00:00:31]} 34. h4
{[%clk 00:20:36]} {[%emt 00:03:05]} b5 {[%clk 00:00:43]} {[%emt 00:00:31]} 35.
Bc5 {[%clk 00:11:08]} {[%emt 00:09:58]} Ng8 {[%clk 00:00:50]} {[%emt 00:00:22]}
36. Be3 {[%clk 00:06:45]} {[%emt 00:04:53]} Nf6 {[%clk 00:00:53]} {[%emt
00:00:27]} 37. Kg3 {[%clk 00:04:40]} {[%emt 00:02:34]} Nh5+ {[%clk 00:01:07]}
{[%emt 00:00:17]} 38. Kf3 {[%clk 00:04:53]} {[%emt 00:00:17]} Nf6 {[%clk
00:01:14]} {[%emt 00:00:24]} 39. Bg5 {[%clk 00:02:39]} {[%emt 00:02:43]} Nh5
{[%clk 00:01:38]} {[%emt 00:00:05]} 40. Be3 {[%clk 00:01:50]} {[%emt 00:01:20]}
1/2-1/2

[Event "NJSK 2024 AmBm"]
[Site "Groningen, Netherlands"]
[Date "2024.06.02"]
[Round "6.3"]
[White "Knobbe, Elise"]
[Black "Tangarife Ramirez, Katja"]
[Result "0-1"]
[TimeControl "90min/40moves + 30min + 30sec/move"]
[WhiteElo "1785"]
[BlackElo "1742"]

1. e4 {[%clk 01:30:58]} {[%emt 00:00:02]} e5 {[%clk 01:30:56]} {[%emt
00:00:04]} 2. Nc3 {[%clk 01:31:24]} {[%emt 00:00:04]} Nf6 {[%clk 01:31:22]}
{[%emt 00:00:04]} 3. g3 {[%clk 01:31:50]} {[%emt 00:00:04]} Bc5 {[%clk
01:31:40]} {[%emt 00:00:12]} 4. Bg2 {[%clk 01:32:12]} {[%emt 00:00:08]} O-O
{[%clk 01:32:06]} {[%emt 00:00:04]} 5. d3 {[%clk 01:32:30]} {[%emt 00:00:13]}
c6 {[%clk 01:31:14]} {[%emt 00:01:22]} 6. Nge2 {[%clk 01:28:06]} {[%emt
00:04:52]} d5 {[%clk 01:30:43]} {[%emt 00:01:02]} 7. exd5 {[%clk 01:26:50]}
{[%emt 00:01:46]} cxd5 {[%clk 01:31:03]} {[%emt 00:00:09]} 8. Bg5 {[%clk
01:24:56]} {[%emt 00:02:25]} Bxf2+ {[%clk 01:13:17]} {[%emt 00:18:16]} 9. Kxf2
{[%clk 01:15:16]} {[%emt 00:10:10]} Ng4+ {[%clk 01:12:07]} {[%emt 00:01:39]} 10.
Kg1 {[%clk 01:15:00]} {[%emt 00:00:45]} Qxg5 {[%clk 01:10:42]} {[%emt
00:01:57]} 11. h3 {[%clk 01:14:16]} {[%emt 00:01:12]} Qe3+ {[%clk 01:10:46]}
{[%emt 00:00:28]} 0-1

[Event "NJSK 2024 AmBm"]
[Site "Groningen, Netherlands"]
[Date "2024.06.02"]
[Round "6.4"]
[White "Damen, Josephine"]
[Black "Feng, Elysia"]
[Result "0-1"]
[TimeControl "90min/40moves + 30min + 30sec/move"]
[WhiteElo "1890"]
[BlackElo "1862"]

1. e4 {[%clk 01:30:57]} {[%emt 00:00:02]} e5 {[%clk 01:30:57]} {[%emt
00:00:04]} 2. Nf3 {[%clk 01:31:23]} {[%emt 00:00:04]} Nc6 {[%clk 01:31:23]}
{[%emt 00:00:04]} 3. Bc4 {[%clk 01:31:45]} {[%emt 00:00:07]} Bc5 {[%clk
01:31:49]} {[%emt 00:00:05]} 4. c3 {[%clk 01:32:09]} {[%emt 00:00:06]} Nf6
{[%clk 01:32:16]} {[%emt 00:00:04]} 5. d4 {[%clk 01:32:33]} {[%emt 00:00:05]}
exd4 {[%clk 01:32:41]} {[%emt 00:00:04]} 6. cxd4 {[%clk 01:32:51]} {[%emt
00:00:13]} Bb4+ {[%clk 01:33:04]} {[%emt 00:00:07]} 7. Nbd2 {[%clk 01:33:12]}
{[%emt 00:00:08]} Nxe4 {[%clk 01:32:49]} {[%emt 00:00:46]} 8. d5 {[%clk
01:33:34]} {[%emt 00:00:08]} Ne7 {[%clk 01:32:30]} {[%emt 00:00:49]} 9. O-O
{[%clk 01:33:55]} {[%emt 00:00:09]} Bxd2 {[%clk 01:32:54]} {[%emt 00:00:06]} 10.
Nxd2 {[%clk 01:33:02]} {[%emt 00:01:23]} Nxd2 {[%clk 01:33:10]} {[%emt
00:00:14]} 11. Bxd2 {[%clk 01:32:52]} {[%emt 00:00:39]} d6 {[%clk 01:33:30]}
{[%emt 00:00:10]} 12. Bc3 {[%clk 01:26:10]} {[%emt 00:07:12]} O-O {[%clk
01:33:07]} {[%emt 00:00:53]} 13. Qh5 {[%clk 01:13:32]} {[%emt 00:13:08]} Bf5
{[%clk 01:30:49]} {[%emt 00:02:48]} 14. Rae1 {[%clk 01:13:26]} {[%emt
00:00:36]} Bg6 {[%clk 01:29:16]} {[%emt 00:02:03]} 15. Qd1 {[%clk 01:12:57]}
{[%emt 00:00:58]} Nf5 {[%clk 01:21:33]} {[%emt 00:08:15]} 16. g4 {[%clk
01:02:48]} {[%emt 00:10:38]} Nh6 {[%clk 01:20:52]} {[%emt 00:01:11]} 17. Qd4
{[%clk 00:51:39]} {[%emt 00:11:39]} f6 {[%clk 01:20:00]} {[%emt 00:01:23]} 18.
h4 {[%clk 00:49:10]} {[%emt 00:02:59]} Qd7 {[%clk 01:11:16]} {[%emt 00:09:14]}
19. Re6 {[%clk 00:38:20]} {[%emt 00:11:19]} Bf7 {[%clk 00:57:10]} {[%emt
00:14:36]} 20. Re4 {[%clk 00:25:33]} {[%emt 00:13:17]} Rae8 {[%clk 00:54:40]}
{[%emt 00:02:58]} 21. Rf4 {[%clk 00:22:47]} {[%emt 00:03:17]} Re5 {[%clk
00:49:34]} {[%emt 00:05:36]} 22. Qxa7 {[%clk 00:19:59]} {[%emt 00:03:19]} g5
{[%clk 00:43:09]} {[%emt 00:06:56]} 23. Bxe5 {[%clk 00:13:48]} {[%emt
00:06:40]} gxf4 {[%clk 00:43:30]} {[%emt 00:00:10]} 24. Bxf6 {[%clk 00:13:54]}
{[%emt 00:00:24]} Qxg4+ {[%clk 00:43:12]} {[%emt 00:00:47]} 25. Kh2 {[%clk
00:14:13]} {[%emt 00:00:10]} Bg6 {[%clk 00:43:05]} {[%emt 00:00:38]} 26. Qd4
{[%clk 00:07:07]} {[%emt 00:07:36]} Nf5 {[%clk 00:42:52]} {[%emt 00:00:43]} 27.
Qc3 {[%clk 00:05:57]} {[%emt 00:01:40]} f3 {[%clk 00:37:10]} {[%emt 00:06:12]}
28. Rg1 {[%clk 00:05:41]} {[%emt 00:00:46]} Qf4+ {[%clk 00:37:35]} {[%emt
00:00:05]} 29. Kh3 {[%clk 00:04:13]} {[%emt 00:01:58]} Ng7 {[%clk 00:36:20]}
{[%emt 00:01:45]} 30. Rxg6 {[%clk 00:02:09]} {[%emt 00:02:34]} hxg6 {[%clk
00:36:45]} {[%emt 00:00:05]} 31. Bxg7 {[%clk 00:01:13]} {[%emt 00:01:26]} Rf7
{[%clk 00:37:09]} {[%emt 00:00:07]} 32. Bd4 {[%clk 00:00:34]} {[%emt 00:01:08]}
g5 {[%clk 00:37:27]} {[%emt 00:00:12]} 0-1

[Event "NJSK 2024 AmBm"]
[Site "Groningen, Netherlands"]
[Date "2024.06.02"]
[Round "6.5"]
[White "Yildirim, Azra"]
[Black "Basa, Manasvita"]
[Result "0-1"]
[TimeControl "90min/40moves + 30min + 30sec/move"]
[WhiteElo "1597"]
[BlackElo "1829"]

1. e4 {[%clk 01:30:57]} {[%emt 00:00:03]} e5 {[%clk 01:30:50]} {[%emt
00:00:10]} 2. Bc4 {[%clk 01:29:34]} {[%emt 00:01:54]} Nc6 {[%clk 01:28:55]}
{[%emt 00:02:25]} 3. Nc3 {[%clk 01:27:38]} {[%emt 00:02:26]} Bc5 {[%clk
01:27:49]} {[%emt 00:01:36]} 4. Nf3 {[%clk 01:26:08]} {[%emt 00:01:59]} Nf6
{[%clk 01:26:59]} {[%emt 00:01:21]} 5. d3 {[%clk 01:25:13]} {[%emt 00:01:23]}
d6 {[%clk 01:26:14]} {[%emt 00:01:16]} 6. Bg5 {[%clk 01:19:20]} {[%emt
00:06:24]} h6 {[%clk 01:25:57]} {[%emt 00:00:46]} 7. Bh4 {[%clk 01:18:12]}
{[%emt 00:01:38]} g5 {[%clk 01:26:20]} {[%emt 00:00:08]} 8. Bg3 {[%clk
01:17:24]} {[%emt 00:01:17]} Na5 {[%clk 00:55:44]} {[%emt 00:31:07]} 9. Bb3
{[%clk 01:14:38]} {[%emt 00:03:16]} Nxb3 {[%clk 00:56:05]} {[%emt 00:00:08]} 10.
axb3 {[%clk 01:14:42]} {[%emt 00:00:26]} h5 {[%clk 00:55:14]} {[%emt 00:01:21]}
11. h4 {[%clk 01:11:36]} {[%emt 00:03:35]} Ng4 {[%clk 00:51:48]} {[%emt
00:03:56]} 12. Qd2 {[%clk 00:58:02]} {[%emt 00:14:05]} c6 {[%clk 00:32:24]}
{[%emt 00:19:55]} 13. d4 {[%clk 00:45:37]} {[%emt 00:12:54]} exd4 {[%clk
00:22:15]} {[%emt 00:10:39]} 14. Nxd4 {[%clk 00:45:22]} {[%emt 00:00:45]} Qf6
{[%clk 00:16:36]} {[%emt 00:06:09]} 15. Nf3 {[%clk 00:38:06]} {[%emt 00:07:46]}
gxh4 {[%clk 00:13:42]} {[%emt 00:03:24]} 16. Bxh4 {[%clk 00:34:44]} {[%emt
00:03:52]} Qh6 {[%clk 00:12:43]} {[%emt 00:01:29]} 17. O-O-O {[%clk 00:19:25]}
{[%emt 00:15:49]} Bxf2 {[%clk 00:10:07]} {[%emt 00:03:05]} 18. Bg5 {[%clk
00:17:24]} {[%emt 00:02:31]} Be3 {[%clk 00:10:30]} {[%emt 00:00:07]} 19. Bxe3
{[%clk 00:17:32]} {[%emt 00:00:21]} Qxe3 {[%clk 00:10:48]} {[%emt 00:00:12]} 20.
Qxe3 {[%clk 00:17:08]} {[%emt 00:00:55]} Nxe3 {[%clk 00:11:12]} {[%emt
00:00:05]} 21. Rd2 {[%clk 00:13:49]} {[%emt 00:03:50]} Rh6 {[%clk 00:10:00]}
{[%emt 00:01:42]} 22. Re2 {[%clk 00:11:29]} {[%emt 00:02:49]} Ng4 {[%clk
00:10:07]} {[%emt 00:00:24]} 23. Nh4 {[%clk 00:09:44]} {[%emt 00:02:16]} Ne5
{[%clk 00:04:52]} {[%emt 00:05:44]} 24. Nf5 {[%clk 00:07:19]} {[%emt 00:02:54]}
Bxf5 {[%clk 00:05:17]} {[%emt 00:00:06]} 25. exf5 {[%clk 00:07:44]} {[%emt
00:00:05]} O-O-O {[%clk 00:03:49]} {[%emt 00:01:58]} 26. Ne4 {[%clk 00:07:20]}
{[%emt 00:00:54]} d5 {[%clk 00:03:17]} {[%emt 00:01:01]} 27. Ng5 {[%clk
00:05:52]} {[%emt 00:01:58]} f6 {[%clk 00:02:54]} {[%emt 00:00:54]} 28. Ne6
{[%clk 00:05:50]} {[%emt 00:00:32]} Rg8 {[%clk 00:03:06]} {[%emt 00:00:18]} 29.
Rhe1 {[%clk 00:04:15]} {[%emt 00:02:05]} h4 {[%clk 00:03:02]} {[%emt 00:00:34]}
30. Nf4 {[%clk 00:03:54]} {[%emt 00:00:51]} Rg5 {[%clk 00:02:22]} {[%emt
00:01:09]} 31. Ng6 {[%clk 00:02:14]} {[%emt 00:02:10]} Nxg6 {[%clk 00:02:28]}
{[%emt 00:00:23]} 32. fxg6 {[%clk 00:02:41]} {[%emt 00:00:04]} Rhxg6 {[%clk
00:02:49]} {[%emt 00:00:10]} 33. Re8+ {[%clk 00:02:46]} {[%emt 00:00:25]} Kd7
{[%clk 00:02:15]} {[%emt 00:01:04]} 34. Rh8 {[%clk 00:02:33]} {[%emt 00:00:43]}
Rxg2 {[%clk 00:00:57]} {[%emt 00:01:48]} 35. Rxh4 {[%clk 00:02:53]} {[%emt
00:00:10]} f5 {[%clk 00:01:05]} {[%emt 00:00:22]} 36. Rh7+ {[%clk 00:02:50]}
{[%emt 00:00:32]} Rg7 {[%clk 00:01:29]} {[%emt 00:00:07]} 37. Rh4 {[%clk
00:01:45]} {[%emt 00:01:34]} Rf7 {[%clk 00:01:44]} {[%emt 00:00:15]} 38. Rf4
{[%clk 00:00:55]} {[%emt 00:01:20]} Rg4 {[%clk 00:01:59]} {[%emt 00:00:15]} 39.
Ref1 {[%clk 00:01:18]} {[%emt 00:00:08]} Rxf4 {[%clk 00:02:03]} {[%emt
00:00:26]} 40. Rxf4 {[%clk 00:01:44]} {[%emt 00:00:04]} Ke6 {[%clk 00:02:28]}
{[%emt 00:00:04]} 41. Kd2 {[%clk 00:02:00]} {[%emt 00:00:14]} Ke5 {[%clk
00:02:21]} {[%emt 00:00:38]} 42. Ke3 {[%clk 00:00:41]} {[%emt 00:01:48]} Rh7
{[%clk 00:02:15]} {[%emt 00:00:36]} 43. Rf3 {[%clk 00:00:36]} {[%emt 00:00:35]}
Rh4 {[%clk 00:02:17]} {[%emt 00:00:28]} 44. Ke2 {[%clk 00:29:46]} {[%emt
00:01:20]} d4 {[%clk 00:31:18]} {[%emt 00:01:30]} 45. Kd3 {[%clk 00:28:30]}
{[%emt 00:01:46]} Re4 {[%clk 00:30:04]} {[%emt 00:01:43]} 46. Rh3 {[%clk
00:26:09]} {[%emt 00:02:51]} Re3+ {[%clk 00:22:48]} {[%emt 00:07:46]} 47. Rxe3+
{[%clk 00:26:18]} {[%emt 00:00:21]} dxe3 {[%clk 00:23:12]} {[%emt 00:00:06]} 48.
Kxe3 {[%clk 00:26:45]} {[%emt 00:00:03]} f4+ {[%clk 00:23:40]} {[%emt
00:00:02]} 49. Kf3 {[%clk 00:26:09]} {[%emt 00:01:06]} b5 {[%clk 00:23:35]}
{[%emt 00:00:36]} 50. b4 {[%clk 00:25:28]} {[%emt 00:01:11]} a6 {[%clk
00:23:54]} {[%emt 00:00:11]} 51. c3 {[%clk 00:23:58]} {[%emt 00:02:00]} Kd5
{[%clk 00:23:42]} {[%emt 00:00:42]} 52. Kxf4 {[%clk 00:23:19]} {[%emt
00:01:10]} Kc4 {[%clk 00:24:04]} {[%emt 00:00:08]} 53. Ke4 {[%clk 00:23:37]}
{[%emt 00:00:12]} Kb3 {[%clk 00:24:04]} {[%emt 00:00:30]} 54. Kd4 {[%clk
00:23:56]} {[%emt 00:00:10]} Kxb2 {[%clk 00:24:27]} {[%emt 00:00:08]} 55. Kd3
{[%clk 00:22:45]} {[%emt 00:01:40]} Kb3 {[%clk 00:24:11]} {[%emt 00:00:47]} 56.
Kd4 {[%clk 00:22:51]} {[%emt 00:00:23]} Kc2 {[%clk 00:24:12]} {[%emt 00:00:29]}
57. c4 {[%clk 00:20:38]} {[%emt 00:02:44]} Kb3 {[%clk 00:24:35]} {[%emt
00:00:06]} 58. cxb5 {[%clk 00:20:49]} {[%emt 00:00:19]} cxb5 {[%clk 00:24:58]}
{[%emt 00:00:07]} 59. Kd3 {[%clk 00:18:57]} {[%emt 00:02:22]} Kxb4 {[%clk
00:25:19]} {[%emt 00:00:09]} 60. Kc2 {[%clk 00:19:21]} {[%emt 00:00:07]} Ka3
{[%clk 00:25:35]} {[%emt 00:00:14]} 61. Kb1 {[%clk 00:19:39]} {[%emt 00:00:11]}
b4 {[%clk 00:25:52]} {[%emt 00:00:13]} 62. Kc2 {[%clk 00:18:37]} {[%emt
00:01:32]} b3+ {[%clk 00:26:15]} {[%emt 00:00:07]} 63. Kc1 {[%clk 00:18:46]}
{[%emt 00:00:21]} Ka2 {[%clk 00:26:37]} {[%emt 00:00:08]} 0-1